[Event "Germany Countries-chT Youth 2022"]
[Site "Wiesbaden"]
[Date "2022.10.03"]
[Round "5"]
[White "Nied, Pascal"]
[Black "Sommer, Justus"]
[Result "1/2-1/2"]
[ECO "C65"]
[WhiteElo "2131"]
[BlackElo "2122"]
[Annotator "TA"]
[PlyCount "105"]
[EventDate "2022.09.28"]
[EventType "team-tourn"]
[EventRounds "7"]
[EventCountry "GER"]
[SourceTitle "playchess.com"]
[Source "ChessBase"]
[SourceQuality "1"]
[TimeControl "40/5400+30:1800+30"]

{[%evp 9,105,24,33,23,31,30,25,19,27,30,22,18,28,18,49,46,77,77,83,74,81,60,95,86,183,176,187,157,331,325,266,235,229,238,244,228,279,222,218,234,245,238,217,182,185,183,179,176,182,0,0,-17,-17,-17,-14,-12,-12,-362,0,-294,-289,-287,-279,-334,-75,-271,-241,-228,-243,-464,-85,-85,-56,-539,-539,-510,-509,-522,-483,-459,-509,-508,-385,-460,-294,-300,-285,-271,-257,-264,-264,-264,-264,-264,-190,-190,0,-126]} 1. e4 {[%emt 0:00:03]} e5 {[%emt 0:00:14]} 2. Nf3 {[%emt 0:00:04]} Nc6 {[%emt 0:00:11]} 3. Bb5 {[%emt 0:00:04]} Nf6 {[%emt 0:00:28]} 4. d3 {[%emt 0:02:10]} d6 {[%emt 0:00:33]} 5. c3 {[%emt 0:01:58]} g6 {[%emt 0:01:58]} 6. h3 {[%emt 0:09:11] C65: Ruy Lopez: Berlin Defence (3...Nf6), unusual lines and 4 0-0 Bc5.} Bg7 {[%emt 0:01:41]} 7. Be3 {[%emt 0:01:29]} O-O {[%emt 0:03:25]} 8. O-O {[%emt 0:03:42] White has an edge.} a6 {[%emt 0:05:07]} 9. Ba4 {[%emt 0:03:13]} b5 {[%emt 0:03:32]} 10. Bc2 {[%emt 0:14:18]} Bb7 {[%emt 0:04:49]} 11. Nbd2 {[%emt 0:04:06][%cal Bb1d2,Bd2b3,Bb3a5][%mdl 32]} Re8 {was the old line (11...Nb8).} 12. b4 {[%cal Bb2b4,Bb4b5][%mdl 32] [#]} a5 $146 {[%emt 0:11:59]} ({Predecessor:} 12... Nd7 13. a4 Nf8 14. Bb3 Ne6 15. Bd5 Qc8 16. Nb3 Ne7 17. Bxb7 Qxb7 18. Na5 Qc8 {1-0 (43) Nowicki,B (2305)-Schreiner,P (2479) Krakow 2019}) 13. a4 {[%emt 0:02:19]} bxa4 {[%emt 0:05:23]} 14. b5 {[%emt 0:01:00]} Nb8 {[%emt 0:01:23]} 15. Rxa4 {[%emt 0:09:57]} d5 {[%emt 0:13:14] Against Nc4} 16. Nb3 {[%emt 0:08:06] White is more active.} dxe4 {[%emt 0:02:44]} (16... c6) (16... c6 $16 {was necessary.}) 17. dxe4 $18 {[%emt 0:00:25]} Qc8 {[%emt 0:02:53]} 18. Qb1 {[%emt 0:06:38]} (18. Nxa5 $6 Bxe4 19. Bxe4 Nxe4 $14) 18... Nh5 $2 {[%emt 0:04:36]} (18... Bf8 $16 19. Rxa5 (19. Nxa5 Nbd7 $16) 19... Nbd7) 19. Nxa5 {[%emt 0:01:33]} (19. Rxa5 Nf4) (19. Rxa5 Nf4 $16) 19... Nf4 {[%emt 0:00:23]} 20. Re1 {[%emt 0:05:47] Prevents Ne2+.} Nd7 {[%emt 0:03:12]} 21. Bb3 {[%emt 0:05:05]} h6 {[%emt 0:03:42]} 22. Qa2 {[%emt 0:02:28]} Rf8 {[%emt 0:03:03]} 23. Nxb7 {[%emt 0:09:32]} Rxa4 {[%emt 0:00:20]} 24. Qxa4 {[%emt 0:00:17]} Qxb7 {[%emt 0:00:18]} 25. Qa6 {[%emt 0:01:50]} Qxe4 {[%emt 0:02:13][%cal Of4h3]} 26. Bxf4 {[%emt 0:02:33]} Qxf4 {[%emt 0:00:25]} 27. Qxg6 {[%emt 0:00:55]} Nc5 {[%emt 0:02:13]} 28. Bd5 {[%emt 0:00:58] Hoping for Nxe5.} Rd8 {[%emt 0:04:57]} 29. Rxe5 {[%emt 0:01:12]} (29. Qc6 $1 $18 {[%cal Rc6c5]} e4 30. Qxc5 exf3 31. Bxf3) 29... Kh8 $11 {[%emt 0:04:08][%csl LRe5,LRg6]} 30. Bxf7 {[%emt 0:03:59] Black must now prevent Re3.} Bxe5 {[%emt 0:00:47]} 31. g3 $1 {[%emt 0:00:01] Really sharp!} Qc1+ {[%emt 0:02:05]} 32. Kg2 {[%emt 0:00:25]} Bg7 $1 {[%emt 0:01:55] Threatens to win with ...Nd3.} (32... Bxc3 33. h4 Bg7 34. Ng5 $1 {[%mdl 512]} Qxg5 35. hxg5 $18) 33. h4 $2 {[%emt 0:01:04][%mdl 8192]} (33. b6 $11 cxb6 34. Qxb6) 33... Nd7 $2 {[%emt 0:06:27]} (33... Bxc3 $2 34. Ng5 $1 {[%mdl 512]} Qxg5 35. hxg5 $18) (33... Qxc3 $19 {aiming for ...Rf8.} 34. b6 cxb6 35. Qxb6 Qf6 36. Qxf6 Bxf6) 34. Ng5 $2 {[%emt 0:00:36][%mdl 8192]} Nf8 $19 {[%emt 0:00:15]} 35. Qh5 {[%emt 0:00:26]} Qd1 {[%emt 0:01:28] Against Bb3. Strongly threatening ...Qxh5.} (35... Qxc3 36. Ba2 Qf6 37. Nf7+ Kh7 38. Ng5+ Kh8 39. Nf7+ Kh7 40. Ng5+ Kh8 $11) 36. g4 {[%emt 0:00:34]} Nh7 $2 {[%emt 0:04:48]} (36... Rd3 37. Bc4 Ng6 38. Nf7+ Kh7 39. Ng5+ Kh8 40. Nf7+ Kh7 41. Ng5+ Kh8 $11) (36... Rd7 $19 {and Black stays clearly on top.} 37. Nf3 Qd6) 37. Ne6 $2 {[%emt 0:00:26]} (37. Bb3 $17 Qxb3 38. Nf7+ Kg8 39. Nxd8) 37... Rd3 {[%emt 0:01:24] ( -> ...Qf3+)} 38. Qf5 {[%emt 0:00:31] [#] Against Qf3+} Nf6 $1 {[%emt 0:00:23]} ({Worse is} 38... Bxc3 39. Nd4 Bxd4 40. Qc8+ Kg7 41. Qg8+ Kf6 42. Qg6+ Ke7 43. Qe6+ Kf8 44. Qe8+ Kg7 45. Qg8+ Kf6 46. Qg6+ Ke7 47. Qe6+ Kf8 48. Qe8+ Kg7 49. Qg8+ $11) ({Stronger than} 38... Rxc3 39. Nxg7 Rc1 40. Qc8+ (40. Nh5 Qf1+ 41. Kh2 Qg1+ 42. Kh3 Qf1+ 43. Kh2 Qg1+ 44. Kh3 Qf1+ 45. Kh2 $11) 40... Kxg7 41. Qg8+ Kf6 42. Qg6+ Ke7 43. Qe6+ Kf8 44. Qe8+ Kg7 45. Qg8+ Kf6 46. Qg6+ Ke7 47. Qe6+ Kf8 48. Qe8+ Kg7 49. Qg8+ $11) 39. Nxg7 $2 {[%emt 0:00:14]} (39. g5 {might work better.} Qg4+ 40. Qxg4 Nxg4 41. Bh5) 39... Qxg4+ $2 {[%emt 0:00:47]} (39... Kxg7 $19 {is more deadly.} 40. Be6 {[#]} Qxg4+ $1 {[%mdl 512]} 41. Qxg4+ Nxg4 42. Bxg4 Rxc3) 40. Qxg4 $17 {[%emt 0:00:07]} Nxg4 {[%emt 0:00:02]} 41. Be6 $2 {[%emt 0:31:02][%mdl 8192]} (41. Ne6 $15) 41... Kxg7 $19 {[%emt 0:30:49]} 42. Bxg4 {[%emt 0:00:28]} Rxc3 {[%emt 0:00:07][%mdl 4096] Endgame KR-KB} 43. Bd7 {[%emt 0:00:00]} Rd3 {[%emt 0:00:00]} 44. Bc6 {[%emt 0:00:00]} Kf6 {[%emt 0:00:00]} 45. f3 {[%emt 0:00:00]} Ke5 {[%emt 0:00:00]} 46. Kg3 {[%emt 0:00:00]} Rd4 {[%emt 0:00:00]} 47. Be4 {[%emt 0:00:00]} Rb4 {[%emt 0:00:00]} 48. Bc6 {[%emt 0:00:00]} Rf4 {[%emt 0:00:00]} 49. Be4 {[%emt 0:00:00]} Rf8 {[%emt 0:00:00]} 50. Kg4 {[%emt 0:00:00]} Kf6 {[%emt 0:00:00]} 51. Kh5 {[%emt 0:00:00]} Kg7 {[%emt 0:00:00]} 52. Kg4 {[%emt 0:00:00]} Kf6 {[%emt 0:00:00]} ({Black should play} 52... Rb8 $19 53. Bc6 Kg6 54. Be4+ Kf7 55. Bd5+ Kg7) 53. Kh5 {[%emt 0:00:00] Never resign too early!  Weighted Error Value: White=0.54/Black=0.54} 1/2-1/2

[Event "Germany Countries-chT Youth 2022"]
[Site "Wiesbaden"]
[Date "2022.10.03"]
[Round "5"]
[White "Gluma, Christian"]
[Black "Sidletskyi, Ivan"]
[Result "1/2-1/2"]
[ECO "C07"]
[WhiteElo "2107"]
[BlackElo "2184"]
[Annotator "TA"]
[PlyCount "102"]
[EventDate "2022.09.28"]
[EventType "team-tourn"]
[EventRounds "7"]
[EventCountry "GER"]
[TimeControl "40/5400+30:1800+30"]

{[%evp 19,102,31,22,0,0,0,0,0,0,0,0,0,0,0,0,0,0,0,39,5,18,5,52,-16,0,-41,0,-37,-16,-7,-16,-10,-4,-23,-20,-14,-10,-22,-22,-12,0,-12,-17,-15,0,0,73,77,69,71,85,93,90,63,65,58,55,6,149,66,70,55,69,51,51,51,51,51,59,48,78,48,48,40,51,51,75,31,88,89,93,90,85,85,85]} 1. e4 {[%emt 0:00:04]} e6 {[%emt 0:01:28]} 2. d4 {[%emt 0:00:07]} d5 {[%emt 0:00:31]} 3. Nd2 {[%emt 0:00:07]} c5 {[%emt 0:00:56]} 4. exd5 {[%emt 0:00:12]} Qxd5 {[%emt 0:00:47]} 5. Ngf3 {[%emt 0:00:08]} cxd4 {[%emt 0:00:25]} 6. Bc4 {[%emt 0:00:10]} Qd6 {[%emt 0:00:22]} 7. O-O {[%emt 0:01:36]} Nf6 {[%emt 0:03:24]} 8. Nb3 {[%emt 0:00:56]} Nc6 {[%emt 0:00:47]} 9. Nbxd4 {[%emt 0:01:07]} Nxd4 {[%emt 0:01:04]} 10. Nxd4 {[%emt 0:00:34]} Be7 {[%emt 0:01:16]} 11. Nb5 {[%emt 0:08:35] C07: French Tarrasch: 3...c5, 4 Ngf3 and 4 exd5 Qxd5.} Qc6 {[%emt 0:02:46]} 12. Qe2 {[%emt 0:16:24][%cal Ob5a7]} O-O {[%emt 0:08:21]} 13. Bf4 {[%emt 0:05:42] The position is equal.} a6 {[%emt 0:15:51]} 14. Nd4 {[%emt 0:05:34]} Qc5 {[%emt 0:05:49]} 15. Nb3 {[%emt 0:05:32]} Qc6 {[%emt 0:08:28] [#]} 16. Nd4 $146 {[%emt 0:12:06]} ({Predecessor:} 16. a4 Bd6 17. Bxd6 Qxd6 18. Rad1 Qc7 19. g4 e5 20. g5 Bg4 21. f3 Bh3 22. gxf6 Rfc8 23. Bd3 Bxf1 24. Kxf1 gxf6 {1-0 (104) Dotzer,L (2269)-Holzleithner,J (2022) St Veit 2022}) 16... Qc5 {[%emt 0:00:59]} 17. Nb3 {[%emt 0:08:03]} Qc6 {[%emt 0:11:26]} 18. Bd3 {[%emt 0:05:17]} Bd7 {[%emt 0:04:38][%cal Bc8d7,Bd7c6,Bc6d5][%mdl 32]} 19. Rad1 {[%emt 0:02:51]} Rfd8 {[%emt 0:03:16]} 20. Be5 {[%emt 0:02:45]} Rac8 {[%emt 0:13:47]} (20... Qa4 $11) 21. Qe3 {[%emt 0:03:36]} (21. Na5 $1 $14 Qb6 22. Nc4) 21... Qa4 {[%emt 0:03:58]} 22. Rd2 {[%emt 0:07:03]} Bc6 {[%emt 0:01:35] White must now prevent ...Ng4.} (22... Qxa2 $2 23. Ra1 Qxa1+ 24. Nxa1 $18) 23. Qg3 {[%emt 0:01:53][%cal Ob3d4]} Qg4 {[%emt 0:03:53]} (23... Qxa2 $2 24. Ra1 Qxa1+ 25. Nxa1 $18) 24. Qxg4 {[%emt 0:03:40]} Nxg4 {[%emt 0:00:05]} 25. Bd4 {[%emt 0:00:42]} Bd6 {[%emt 0:02:59]} 26. f4 {[%emt 0:02:53]} Nf6 {[%emt 0:00:07]} 27. g3 {[%emt 0:00:47]} Bd5 {[%emt 0:01:34]} 28. Rfd1 {[%emt 0:00:53]} b5 {[%emt 0:01:31]} 29. c3 {[%emt 0:01:11]} Kf8 {[%emt 0:01:06]} 30. Bf1 {[%emt 0:01:44]} Ne4 {[%emt 0:01:00]} 31. Re2 {[%emt 0:00:18]} f5 {[%emt 0:01:08]} 32. Bg2 {[%emt 0:00:33]} Rc4 {[%emt 0:00:41]} (32... Be7 $11) 33. Bxe4 $16 {[%emt 0:02:33]} fxe4 {[%emt 0:00:16]} 34. Nd2 {[%csl LRc4,LRe4]} Rcc8 {[%emt 0:00:26]} 35. Nxe4 {[%emt 0:00:30]} Be7 {[%emt 0:00:33]} 36. Nd2 {[%emt 0:00:50]} Kf7 {[%emt 0:00:29]} 37. Kf2 {[%emt 0:00:36]} b4 {[%emt 0:00:39]} 38. Nf3 {[%emt 0:00:28]} (38. cxb4 $14 Bxa2 39. Nf3) 38... Ke8 {[%emt 0:00:35]} (38... Bxf3 $11 39. Kxf3 bxc3 40. bxc3 Rxc3+ 41. Bxc3 Rxd1) 39. Red2 {[%emt 0:00:50] White is more active.} (39. Bxg7 $16 Bc4 40. Red2) 39... bxc3 $14 {[%emt 0:00:24]} 40. bxc3 {[%emt 0:00:13]} g6 {[%emt 0:00:30]} 41. Rb1 {[%emt 0:09:02]} Rc4 {[%emt 0:03:01]} 42. Ne5 {[%emt 0:07:05]} Ra4 {[%emt 0:01:11]} 43. Rb6 {[%emt 0:03:09]} Bd6 {[%emt 0:04:15]} 44. Ng4 {[%emt 0:03:32] aiming for Nf6+.} Be7 {[%emt 0:01:50]} 45. Rbb2 {[%emt 0:01:17]} Rc8 {[%emt 0:04:16]} 46. Ne3 {[%emt 0:01:10]} Be4 {[%emt 0:03:58]} 47. Rb6 {[%emt 0:01:43]} Kf7 {[%emt 0:01:02]} 48. Rdb2 {[%emt 0:01:50]} Bc5 {[%emt 0:06:43]} (48... h5 $14) 49. Bxc5 $16 {[%emt 0:00:55] White is better.} Rxc5 {[%emt 0:00:03]} 50. R6b4 {[%emt 0:01:00]} Rxb4 {[%emt 0:01:41]} 51. Rxb4 {[%emt 0:01:24]} Bd3 {[%emt 0:01:29] Weighted Error Value: White=0.15 (very precise) /Black=0.18 (very precise)} 1/2-1/2

[Event "Germany Countries-chT Youth 2022"]
[Site "Wiesbaden"]
[Date "2022.10.03"]
[Round "5"]
[White "Hassemeier, Mika"]
[Black "Stork, Oliver"]
[Result "0-1"]
[ECO "D31"]
[WhiteElo "2095"]
[BlackElo "2315"]
[Annotator "RC"]
[PlyCount "62"]
[EventDate "2022.09.28"]
[EventType "team-tourn"]
[EventRounds "7"]
[EventCountry "GER"]
[SourceTitle "playchess.com"]
[Source "ChessBase"]
[SourceQuality "1"]
[TimeControl "40/5400+30:1800+30"]

1. d4 {[%emt 0:00:01]} d5 {[%emt 0:00:06]} 2. c4 {[%emt 0:00:06]} e6 {[%emt 0:00:06]} 3. Nc3 {[%emt 0:00:07]} a6 {[%emt 0:00:06]} 4. cxd5 {[%emt 0:00:07]} exd5 {[%emt 0:00:05]} 5. Qb3 {[%emt 0:00:09]} c5 {[%emt 0:00:07]} 6. Qxd5 {[%emt 0:12:32]} cxd4 {[%emt 0:00:21]} 7. Qxd8+ {[%emt 0:00:14]} Kxd8 {[%emt 0:00:05]} 8. Ne4 {[%emt 0:07:21]} Nc6 {[%emt 0:04:21]} 9. Bd2 {[%emt 0:22:14]} Bf5 {[%emt 0:10:32]} 10. Ng3 {[%emt 0:02:15]} Bg6 {[%emt 0:03:22]} 11. a3 {[%emt 0:03:58]} Nf6 {[%emt 0:07:37]} 12. Nf3 {[%emt 0:02:34]} Bc5 {[%emt 0:01:00]} 13. Nh4 {[%emt 0:09:57]} Re8 {[%emt 0:11:54]} 14. Nxg6 {[%emt 0:04:58]} hxg6 {[%emt 0:00:11]} 15. O-O-O {[%emt 0:00:47]} Kc7 {[%emt 0:11:23]} 16. h4 {[%emt 0:08:08]} a5 {[%emt 0:22:31]} 17. Kb1 {[%emt 0:06:13]} b5 {[%emt 0:01:23]} 18. Rc1 {[%emt 0:02:08]} Kb6 {[%emt 0:00:11]} 19. f3 {[%emt 0:08:00]} Ne5 {[%emt 0:05:51]} 20. Bg5 {[%emt 0:01:08]} Nd5 {[%emt 0:05:06]} 21. Ne4 {[%emt 0:00:48]} Bf8 {[%emt 0:00:42]} 22. Rd1 {[%emt 0:01:57]} Nc6 {[%emt 0:00:41]} 23. h5 {[%emt 0:01:46]} Re6 {[%emt 0:09:00]} 24. g3 {[%emt 0:00:53]} f5 {[%emt 0:00:08]} 25. Nf2 {[%emt 0:00:45]} a4 {[%emt 0:02:56]} 26. Nd3 {[%emt 0:00:47]} b4 {[%emt 0:00:27]} 27. Nxb4 {[%emt 0:00:49]} Bxb4 {[%emt 0:01:00]} 28. axb4 {[%emt 0:00:05]} a3 {[%emt 0:00:16]} 29. e4 {[%emt 0:02:44]} a2+ {[%emt 0:01:15]} 30. Ka1 {[%emt 0:00:11]} Ndxb4 {[%emt 0:00:06]} 31. Rh2 {[%emt 0:00:39]} Na5 {[%emt 0:00:08]} 0-1

[Event "Germany Countries-chT Youth 2022"]
[Site "Wiesbaden"]
[Date "2022.10.03"]
[Round "5"]
[White "Bosselmann, Tom Linus"]
[Black "Hänselmann, Hendrik"]
[Result "1/2-1/2"]
[ECO "E71"]
[WhiteElo "2061"]
[BlackElo "1989"]
[Annotator "TA"]
[PlyCount "87"]
[EventDate "2022.09.28"]
[EventType "team-tourn"]
[EventRounds "7"]
[EventCountry "GER"]
[SourceTitle "playchess.com"]
[Source "ChessBase"]
[SourceQuality "1"]
[TimeControl "40/5400+30:1800+30"]

{[%evp 13,87,34,41,32,29,40,49,29,85,85,89,85,85,85,85,75,106,84,77,54,52,43,85,78,78,53,53,53,53,53,53,53,53,53,53,53,53,53,53,0,0,0,0,0,0,0,0,0,0,0,0,-60,-48,-73,-48,-69,-58,-70,26,29,27,-8,22,0,0,-34,-59,-74,0,-194,-91,-110,-110,-123,0,0]} 1. d4 {[%emt 0:00:02]} Nf6 {[%emt 0:00:05]} 2. c4 {[%emt 0:00:05]} g6 {[%emt 0:00:04]} 3. Nc3 {[%emt 0:00:07]} Bg7 {[%emt 0:00:04]} 4. e4 {[%emt 0:00:06]} d6 {[%emt 0:00:03]} 5. h3 {[%emt 0:00:06]} O-O {[%emt 0:00:08]} 6. Be3 {[%emt 0:00:04]} e5 {[%emt 0:03:08]} 7. d5 {[%emt 0:00:07]} Na6 {[%emt 0:00:28]} 8. g4 {[%emt 0:00:08] E71: King's Indian: 4 e4 d6 5 h3.} Nc5 {[%emt 0:01:36]} 9. f3 {[%emt 0:00:07]} a5 {[%emt 0:01:06]} 10. Qd2 {[%emt 0:07:52] White is slightly better.} Ne8 {[%emt 0:10:07]} (10... c6 $1 $11) 11. h4 $16 {[%emt 0:03:41]} f5 {[%emt 0:04:35]} 12. g5 {[%emt 0:06:12]} f4 {[%emt 0:06:06]} 13. Bf2 {[%emt 0:00:06]} Bh8 {[%emt 0:00:52] [#]} 14. Nge2 $146 {[%emt 0:15:25]} ({Predecessor:} 14. Bh3 Ng7 15. Bxc5 dxc5 16. O-O-O Bxh3 17. Nxh3 Ne8 18. h5 Nd6 19. Qe2 Bg7 20. h6 {1-0 (95) Elsness,F (2459)-Mihajlov,S (2384) Oslo 2021}) 14... Ng7 {[%emt 0:01:05]} 15. Nc1 {[%emt 0:05:39]} (15. Bxc5 dxc5 16. b3) 15... b6 {[%emt 0:04:35]} 16. Rg1 {[%emt 0:05:57]} Nh5 {[%emt 0:03:38]} 17. Nd3 {[%emt 0:18:13]} Nxd3+ {[%emt 0:12:12]} 18. Bxd3 {[%emt 0:01:35]} Bd7 {[%emt 0:10:00]} 19. b3 {[%emt 0:01:15]} Rf7 {[%emt 0:08:21]} 20. a3 {[%emt 0:01:13]} Qb8 {[%emt 0:01:42]} 21. Qd1 {[%emt 0:01:18]} Qb7 {[%emt 0:01:42]} 22. Kd2 {[%emt 0:02:29]} Rff8 {[%emt 0:03:04]} 23. Qc2 {[%emt 0:00:27]} Ra7 {[%emt 0:08:11]} 24. Ra2 {[%emt 0:01:21]} Rfa8 {[%emt 0:01:37]} 25. Rga1 {[%emt 0:02:25]} Bg7 {[%emt 0:03:16][%cal Bh8g7,Bg7f8,Bf8e7][%mdl 32]} 26. b4 {[%emt 0:06:05]} ({Better is} 26. Rd1 $14) 26... axb4 $11 {[%emt 0:00:54]} 27. axb4 {[%emt 0:00:02]} Bf8 {[%emt 0:00:27]} 28. Rxa7 {[%emt 0:06:19]} Rxa7 {[%emt 0:00:14]} 29. Rxa7 {[%emt 0:00:18]} Qxa7 {[%emt 0:00:05]} 30. Qa2 {[%emt 0:00:54]} Qxa2+ {[%emt 0:01:28]} 31. Nxa2 {[%emt 0:00:35]} Be7 {[%emt 0:01:21][%cal Oh7h6]} 32. Nc1 {[%emt 0:00:50]} (32. c5 $11 dxc5 33. bxc5 bxc5 34. Bc4) 32... h6 $15 {[%emt 0:01:14]} 33. gxh6 {[%emt 0:00:41][%cal Oc4c5]} Ng3 {[%emt 0:00:23]} 34. c5 {[%emt 0:02:31]} bxc5 {[%emt 0:03:16]} 35. bxc5 {[%emt 0:00:02]} dxc5 {[%emt 0:03:45]} ({Black should play} 35... Kh7 $15) 36. Nb3 $11 {[%emt 0:00:15]} Bxh4 {[%emt 0:00:47][%cal Oc5c4] [#] ...c4! is the strong threat.} 37. Nxc5 {[%emt 0:01:33]} Bc8 {[%emt 0:02:40]} 38. Ba6 {[%emt 0:00:20]} Bh3 {[%emt 0:02:42]} 39. Bc4 {[%emt 0:03:41] aiming for d6+.} Kh7 {[%emt 0:01:35]} 40. Ke1 {[%emt 0:01:41]} Kxh6 {[%emt 0:01:15]} (40... Be7 $17) 41. Na6 $2 {[%emt 0:30:44]} (41. Nd3 $1 $11) 41... Bd8 {[%emt 0:30:37]} (41... Bg2 $19 {is more deadly.} 42. Be2 g5 43. Nxc7 g4) 42. Nb8 {[%emt 0:00:00]} g5 {[%emt 0:00:00]} 43. Bd3 {[%emt 0:00:00] [#]} Kg6 {[%emt 0:00:00]} (43... Be7 44. Ba7 (44. Nc6 Bd6) 44... Bd6) ({Black should try} 43... Be7 $1 $17 44. Ba7 (44. Nc6 $2 Bd6 $19) 44... Nh1) 44. Nc6 {[%emt 0:00:00][%csl LRd8,LRe5] Weighted Error Value: White=0.23 (precise) /Black=0.18 (very precise)} 1/2-1/2

[Event "Germany Countries-chT Youth 2022"]
[Site "Wiesbaden"]
[Date "2022.10.03"]
[Round "5"]
[White "Koll, Linus"]
[Black "Chassard, Cedric"]
[Result "1/2-1/2"]
[ECO "B20"]
[WhiteElo "2060"]
[BlackElo "2042"]
[Annotator "TA"]
[PlyCount "93"]
[EventDate "2022.09.28"]
[EventType "team-tourn"]
[EventRounds "7"]
[EventCountry "GER"]
[SourceTitle "playchess.com"]
[Source "ChessBase"]
[SourceQuality "1"]
[TimeControl "40/5400+30:1800+30"]

{[%evp 9,93,-31,-37,-46,-33,-40,-27,-24,-6,-10,13,0,0,0,0,0,0,0,0,0,0,0,0,0,0,0,0,-24,-28,-56,-14,-16,-19,-28,-10,-6,21,14,11,0,40,52,41,39,39,0,0,0,0,0,0,0,0,0,0,0,0,0,0,-17,-17,-17,-21,-39,-43,-58,-35,-40,-17,-35,-17,-17,0,0,0,-24,-24,-25,-25,-25,0,-27,8,8,203,-8]} 1. e4 {[%emt 0:00:01]} c5 {[%emt 0:00:02]} 2. b3 {[%emt 0:01:06]} g6 {[%emt 0:02:12]} 3. Bb2 {[%emt 0:00:08]} Nf6 {[%emt 0:00:26]} 4. Qf3 {[%emt 0:03:28]} d6 {[%emt 0:10:30]} 5. Bxf6 {[%emt 0:04:22]} exf6 {[%emt 0:00:10] [#]} 6. Bb5+ $146 {[%emt 0:00:49] B20: Sicilian: Unusual White 2nd moves.} ({Predecessor:} 6. Nc3 Bg7 7. Bd3 Nc6 8. Qg3 O-O 9. Nge2 Nb4 10. O-O f5 11. Nf4 Nxd3 12. cxd3 fxe4 13. dxe4 {1-0 (36) Reprintsev,A (2321)-Zubarev,A (2556) Lutsk 2016}) 6... Nc6 {[%emt 0:15:16]} 7. Ne2 {[%emt 0:06:18]} Bd7 {[%emt 0:01:14]} 8. Nbc3 {[%emt 0:08:17] Black has an edge.} a6 {[%emt 0:09:11]} 9. Bxc6 {[%emt 0:02:47]} bxc6 {[%emt 0:03:34]} 10. Ng3 {[%emt 0:03:27]} Bg7 {[%emt 0:00:52]} 11. O-O {[%emt 0:00:33]} O-O {[%emt 0:00:28]} 12. Rad1 {[%emt 0:07:54]} h5 {[%emt 0:09:30][%cal Bh7h5,Bh5h4][%mdl 32]} 13. h3 {[%emt 0:12:28] Inhibits Bg4.} h4 {[%emt 0:01:28]} 14. Nge2 {[%emt 0:00:12]} f5 {[%emt 0:00:33]} 15. d4 {[%emt 0:02:29]} cxd4 {[%emt 0:03:15]} 16. Nxd4 {[%emt 0:00:24]} fxe4 {[%emt 0:04:19]} 17. Nxe4 {[%emt 0:02:41]} Qe7 {[%emt 0:01:09] [#] Threatens to win with ...c5.} 18. Nc3 {[%emt 0:13:39]} d5 {[%emt 0:08:27]} 19. Qd3 {[%emt 0:04:18]} Qd6 {[%emt 0:02:16]} (19... Rfe8) (19... Rfe8 $5 {[%cal Re7b4]}) 20. Nf3 {[%emt 0:01:36]} Bf5 {[%emt 0:03:16] A strong pair of Bishops.} 21. Qd2 {[%emt 0:00:19]} Qf6 {[%emt 0:01:37]} 22. Nd4 {[%emt 0:03:28]} Bd7 {[%emt 0:09:59]} 23. Na4 {[%emt 0:00:35]} Qd6 {[%emt 0:01:22]} 24. Nf3 {[%emt 0:03:27]} Qf6 {[%emt 0:01:29][%cal Od7h3]} 25. Nb6 {[%emt 0:03:46][%csl LRa8,LRd7]} Rad8 {[%emt 0:00:28][%cal Od7h3] Hoping for ...Bxh3!} 26. Nxd7 {[%emt 0:01:26]} Rxd7 {[%emt 0:00:01]} 27. Qg5 {[%emt 0:05:31]} Qxg5 {[%emt 0:00:29]} 28. Nxg5 {[%emt 0:00:05]} Re8 {[%emt 0:00:40]} 29. Rfe1 {[%emt 0:00:07] Inhibits Re2.} Rde7 {[%emt 0:01:29]} 30. Kf1 {[%emt 0:01:16]} Bf6 {[%emt 0:00:46]} 31. Nf3 {[%emt 0:00:26]} Kf8 {[%emt 0:00:28]} 32. Rxe7 {[%emt 0:00:33]} Rxe7 $11 {[%emt 0:01:42][%mdl 4096] Endgame KRB-KRN} 33. Re1 {[%emt 0:00:15]} Re6 {[%emt 0:01:20]} 34. Rxe6 {[%emt 0:00:24]} fxe6 {[%emt 0:00:01] KB-KN} 35. Ke2 {[%emt 0:02:33]} Ke7 {[%emt 0:00:05]} 36. Kd3 {[%emt 0:03:38]} e5 {[%emt 0:00:58] ...e4+ is the strong threat.} 37. Nh2 {[%emt 0:01:13]} Kd6 {[%emt 0:01:39]} 38. f3 {[%emt 0:00:23]} Bg7 {[%emt 0:00:53]} 39. Ng4 {[%emt 0:00:42]} Kc5 {[%emt 0:00:20]} 40. c3 {[%emt 0:00:53]} a5 {[%emt 0:04:18]} 41. Ne3 {[%emt 0:32:17]} Kb5 {[%emt 0:12:08]} 42. c4+ {[%emt 0:00:00]} Kc5 {[%emt 0:01:46]} 43. cxd5 {[%emt 0:00:00]} cxd5 {[%emt 0:00:07]} 44. a3 {[%emt 0:00:00]} Kc6 {[%emt 0:04:19]} 45. b4 {[%emt 0:00:00]} d4 {[%emt 0:10:48]} 46. Nc2 {[%emt 0:00:00]} Kb5 {[%emt 0:01:27] [#]} (46... axb4 $11 {and Black is okay.} 47. Nxb4+ Kb5) 47. Ke4 $2 {Weighted Error Value: White=0.07 (flawless) /Black=0.17 (very precise)} (47. f4 $1 $18 {[%cal Rf4e5]}) 1/2-1/2